[Event "Late-Titled-Tuesday-Blitz-May-14-2024"]
[Site "Chess.com"]
[Date "2024.05.14"]
[Round "9"]
[White "ferrufino64"]
[Black "doublesik"]
[Result "0-1"]
[WhiteElo "2336"]
[BlackElo "2552"]
[TimeControl "180+1"]
[EndTime "15:42:48 PDT"]
[Termination "doublesik won by resignation"]

1. e4 {[%clk 0:03:00.9]} 1... e6 {[%clk 0:02:58.6]} 2. d4 {[%clk 0:03:00.6]}
2... d5 {[%clk 0:02:47.3]} 3. Nc3 {[%clk 0:03:00.5]} 3... Nf6 {[%clk 0:02:33.3]}
4. e5 {[%clk 0:03:00]} 4... Nfd7 {[%clk 0:02:21.9]} 5. f4 {[%clk 0:03:00.1]}
5... c5 {[%clk 0:02:05.8]} 6. Nf3 {[%clk 0:02:59.6]} 6... Nc6 {[%clk 0:02:06.2]}
7. Be3 {[%clk 0:02:58.8]} 7... a6 {[%clk 0:01:59.5]} 8. Be2 {[%clk 0:02:53.2]}
8... b5 {[%clk 0:01:58]} 9. Qd2 {[%clk 0:02:50.9]} 9... Be7 {[%clk 0:01:56.4]}
10. f5 {[%clk 0:02:30.9]} 10... b4 {[%clk 0:01:49.2]} 11. fxe6 {[%clk
0:02:26.8]} 11... fxe6 {[%clk 0:01:45.7]} 12. Nd1 {[%clk 0:02:25.5]} 12... O-O
{[%clk 0:01:35.4]} 13. c3 {[%clk 0:02:23.3]} 13... a5 {[%clk 0:01:33]} 14. O-O
{[%clk 0:02:22.8]} 14... Ba6 {[%clk 0:01:28.6]} 15. Bxa6 {[%clk 0:02:17.6]}
15... Rxa6 {[%clk 0:01:29.5]} 16. Nf2 {[%clk 0:02:15.9]} 16... a4 {[%clk
0:01:28.8]} 17. a3 {[%clk 0:02:11.5]} 17... bxc3 {[%clk 0:01:26.4]} 18. bxc3
{[%clk 0:02:11]} 18... Na5 {[%clk 0:01:25.3]} 19. Qd3 {[%clk 0:01:57.3]} 19...
Rb6 {[%clk 0:01:24]} 20. dxc5 {[%clk 0:01:47.1]} 20... Nxc5 {[%clk 0:01:19.3]}
21. Qe2 {[%clk 0:01:41.3]} 21... Nc4 {[%clk 0:01:12.3]} 22. Bd4 {[%clk
0:01:37.9]} 22... Rb2 {[%clk 0:01:10]} 23. Qd1 {[%clk 0:01:34.9]} 23... Nb3
{[%clk 0:01:09.1]} 24. Rb1 {[%clk 0:01:30.8]} 24... Bxa3 {[%clk 0:01:07.8]} 25.
Rxb2 {[%clk 0:01:29.6]} 25... Bxb2 {[%clk 0:01:08.7]} 26. Ng4 {[%clk 0:01:24.4]}
26... Rf4 {[%clk 0:00:48.9]} 27. Nf6+ {[%clk 0:01:10.5]} 27... gxf6 {[%clk
0:00:47.9]} 28. exf6 {[%clk 0:01:11]} 28... e5 {[%clk 0:00:38.6]} 29. f7+ {[%clk
0:01:10.4]} 29... Rxf7 {[%clk 0:00:36.5]} 30. Bxe5 {[%clk 0:01:06.9]} 30... Ne3
{[%clk 0:00:32.6]} 31. Qe1 {[%clk 0:01:03.5]} 31... Nxf1 {[%clk 0:00:28.7]} 32.
Qxf1 {[%clk 0:01:00.8]} 32... Qb6+ {[%clk 0:00:18.4]} 33. Kh1 {[%clk 0:00:59.8]}
33... a3 {[%clk 0:00:18.7]} 34. Qe1 {[%clk 0:00:59.8]} 34... Qg6 {[%clk
0:00:18.1]} 35. Bg3 {[%clk 0:00:27.7]} 35... a2 {[%clk 0:00:18.3]} 36. Ne5
{[%clk 0:00:18.1]} 36... a1=Q {[%clk 0:00:17.7]} 0-1

[Event "Late-Titled-Tuesday-Blitz-May-14-2024"]
[Site "Chess.com"]
[Date "2024.05.14"]
[Round "9"]
[White "lluiss"]
[Black "Zq1"]
[Result "0-1"]
[WhiteElo "2231"]
[BlackElo "2576"]
[TimeControl "180+1"]
[EndTime "15:42:49 PDT"]
[Termination "Zq1 won on time"]

1. Nf3 {[%clk 0:02:58.6]} 1... g6 {[%clk 0:02:58.1]} 2. d4 {[%clk 0:02:56.7]}
2... Bg7 {[%clk 0:02:57.8]} 3. g3 {[%clk 0:02:56.9]} 3... c5 {[%clk 0:02:56.1]}
4. c4 {[%clk 0:02:55.9]} 4... cxd4 {[%clk 0:02:55.5]} 5. Nxd4 {[%clk 0:02:55.6]}
5... Nc6 {[%clk 0:02:55.8]} 6. Nxc6 {[%clk 0:02:55.4]} 6... bxc6 {[%clk
0:02:52.4]} 7. Bg2 {[%clk 0:02:55.2]} 7... Nh6 {[%clk 0:02:47.2]} 8. O-O {[%clk
0:02:45.1]} 8... Nf5 {[%clk 0:02:45.6]} 9. e3 {[%clk 0:02:33.6]} 9... h5 {[%clk
0:02:42.5]} 10. h4 {[%clk 0:02:22.1]} 10... Rb8 {[%clk 0:02:36.7]} 11. Qc2
{[%clk 0:02:16.8]} 11... Ba6 {[%clk 0:02:25.4]} 12. Nd2 {[%clk 0:02:07.2]} 12...
O-O {[%clk 0:02:21.7]} 13. Rd1 {[%clk 0:01:59.9]} 13... d5 {[%clk 0:02:20]} 14.
Qa4 {[%clk 0:01:33.1]} 14... Qb6 {[%clk 0:02:14.1]} 15. cxd5 {[%clk 0:01:27.2]}
15... cxd5 {[%clk 0:02:13.4]} 16. Nb3 {[%clk 0:01:16.9]} 16... e6 {[%clk
0:02:07.5]} 17. Rb1 {[%clk 0:00:50.6]} 17... Rfc8 {[%clk 0:02:02.6]} 18. Nd4
{[%clk 0:00:41.4]} 18... Nxd4 {[%clk 0:01:57.4]} 19. exd4 {[%clk 0:00:39.2]}
19... Rc4 {[%clk 0:01:56.3]} 20. Qb3 {[%clk 0:00:18.1]} 20... Rb4 {[%clk
0:01:41.7]} 21. Qe3 {[%clk 0:00:15.4]} 21... Bxd4 {[%clk 0:01:35.9]} 22. Qf3
{[%clk 0:00:14.3]} 22... Bxb2 {[%clk 0:01:25.3]} 23. Bf4 {[%clk 0:00:13.3]}
23... Rb7 {[%clk 0:01:13.9]} 24. Bd2 {[%clk 0:00:06.4]} 24... Rc4 {[%clk
0:00:55.1]} 25. Bf1 {[%clk 0:00:05.1]} 25... Rc2 {[%clk 0:00:53.8]} 26. Bd3
{[%clk 0:00:01]} 26... Bxd3 {[%clk 0:00:50.8]} 27. Qxd3 {[%clk 0:00:01.9]} 27...
Qc6 {[%clk 0:00:40.9]} 28. Be3 {[%clk 0:00:00.8]} 28... Rc7 {[%clk 0:00:28.2]}
29. Qf1 {[%clk 0:00:00.4]} 29... Bg7 {[%clk 0:00:26.3]} 30. Qg2 {[%clk
0:00:00.2]} 30... a6 {[%clk 0:00:23.3]} 31. Qf3 {[%clk 0:00:00.4]} 31... Rc8
{[%clk 0:00:23.2]} 0-1

[Event "Late-Titled-Tuesday-Blitz-May-14-2024"]
[Site "Chess.com"]
[Date "2024.05.14"]
[Round "9"]
[White "Seppppppy"]
[Black "wild3000"]
[Result "1-0"]
[WhiteElo "2342"]
[BlackElo "2461"]
[TimeControl "180+1"]
[EndTime "15:42:50 PDT"]
[Termination "Seppppppy won by resignation"]

1. d4 {[%clk 0:03:00.9]} 1... e6 {[%clk 0:03:00]} 2. c4 {[%clk 0:02:57.7]} 2...
Nf6 {[%clk 0:03:00]} 3. Nc3 {[%clk 0:02:51.1]} 3... b6 {[%clk 0:02:57.4]} 4. e4
{[%clk 0:02:45.5]} 4... Bb4 {[%clk 0:02:56.8]} 5. Bd3 {[%clk 0:02:38.7]} 5...
Bb7 {[%clk 0:02:56.1]} 6. f3 {[%clk 0:02:34.6]} 6... d6 {[%clk 0:02:55.3]} 7.
Qa4+ {[%clk 0:02:27.8]} 7... Nc6 {[%clk 0:02:53.6]} 8. d5 {[%clk 0:02:28.4]}
8... Bxc3+ {[%clk 0:02:49.3]} 9. bxc3 {[%clk 0:02:26.8]} 9... O-O {[%clk
0:02:48.3]} 10. dxc6 {[%clk 0:02:26.8]} 10... Bc8 {[%clk 0:02:49.2]} 11. Ne2
{[%clk 0:02:20.8]} 11... a5 {[%clk 0:02:49]} 12. O-O {[%clk 0:02:06.5]} 12... h6
{[%clk 0:02:48.3]} 13. Be3 {[%clk 0:01:53.8]} 13... e5 {[%clk 0:02:46.7]} 14. h3
{[%clk 0:01:49.9]} 14... Be6 {[%clk 0:02:45]} 15. f4 {[%clk 0:01:47.2]} 15...
exf4 {[%clk 0:02:36.7]} 16. Nxf4 {[%clk 0:01:48.1]} 16... Re8 {[%clk 0:02:35.8]}
17. Nd5 {[%clk 0:01:44.9]} 17... Nh5 {[%clk 0:02:27.8]} 18. Qd1 {[%clk
0:01:24.1]} 18... Ng3 {[%clk 0:02:21.8]} 19. Rf3 {[%clk 0:01:20.2]} 19... Nh5
{[%clk 0:02:21.5]} 20. g4 {[%clk 0:01:19]} 20... Bxd5 {[%clk 0:02:14.7]} 21.
cxd5 {[%clk 0:01:18.1]} 21... Nf6 {[%clk 0:02:15.6]} 22. Qc2 {[%clk 0:01:15.2]}
22... Qe7 {[%clk 0:02:13.9]} 23. Raf1 {[%clk 0:01:13.1]} 23... Nxe4 {[%clk
0:02:00.3]} 24. Bxe4 {[%clk 0:01:01.2]} 24... Qxe4 {[%clk 0:02:00]} 25. Qxe4
{[%clk 0:01:00.2]} 25... Rxe4 {[%clk 0:02:00.9]} 26. Bd4 {[%clk 0:00:59.8]}
26... f6 {[%clk 0:01:59.4]} 27. Re3 {[%clk 0:00:57.9]} 27... Rxe3 {[%clk
0:01:56.7]} 28. Bxe3 {[%clk 0:00:58.8]} 28... Re8 {[%clk 0:01:56.5]} 29. Rf3
{[%clk 0:00:56.6]} 29... Re5 {[%clk 0:01:48.7]} 30. c4 {[%clk 0:00:55.8]} 30...
Re4 {[%clk 0:01:48.4]} 31. Kg2 {[%clk 0:00:26.8]} 31... Rxc4 {[%clk 0:01:47.8]}
32. Rf4 {[%clk 0:00:27.1]} 32... Rc3 {[%clk 0:01:40.8]} 33. Kf3 {[%clk 0:00:26]}
33... Ra3 {[%clk 0:01:39.2]} 34. Re4 {[%clk 0:00:25.7]} 34... Kf7 {[%clk
0:01:39]} 35. Rc4 {[%clk 0:00:24.5]} 35... Rxa2 {[%clk 0:01:36.8]} 36. Bxb6
{[%clk 0:00:23.9]} 36... Ra3+ {[%clk 0:01:25.2]} 37. Ke4 {[%clk 0:00:24.3]}
37... Ke7 {[%clk 0:01:10.5]} 38. Bxc7 {[%clk 0:00:22.6]} 38... g6 {[%clk
0:00:35.9]} 39. Bxd6+ {[%clk 0:00:22.6]} 39... Kd8 {[%clk 0:00:32.4]} 40. Bxa3
{[%clk 0:00:19.4]} 1-0

[Event "Late-Titled-Tuesday-Blitz-May-14-2024"]
[Site "Chess.com"]
[Date "2024.05.14"]
[Round "9"]
[White "IlyaGrigorjev"]
[Black "TanitoluwaAps116"]
[Result "1-0"]
[WhiteElo "2868"]
[BlackElo "2740"]
[TimeControl "180+1"]
[EndTime "15:42:52 PDT"]
[Termination "IlyaGrigorjev won on time"]

1. c4 {[%clk 0:03:00.9]} 1... e5 {[%clk 0:02:49.6]} 2. Nc3 {[%clk 0:03:00.7]}
2... Nc6 {[%clk 0:02:48.1]} 3. Nf3 {[%clk 0:03:00.6]} 3... Nf6 {[%clk
0:02:46.5]} 4. e3 {[%clk 0:03:00.6]} 4... d5 {[%clk 0:02:46.2]} 5. cxd5 {[%clk
0:02:54.1]} 5... Nxd5 {[%clk 0:02:47.1]} 6. Bb5 {[%clk 0:02:50.6]} 6... Nxc3
{[%clk 0:02:45.5]} 7. bxc3 {[%clk 0:02:51.5]} 7... Bd7 {[%clk 0:02:42]} 8. d4
{[%clk 0:02:50.3]} 8... Bd6 {[%clk 0:02:41.2]} 9. O-O {[%clk 0:02:46.2]} 9...
Qe7 {[%clk 0:02:36.8]} 10. c4 {[%clk 0:02:39.2]} 10... e4 {[%clk 0:02:03.6]} 11.
Nd2 {[%clk 0:02:33.2]} 11... Bb4 {[%clk 0:01:37.9]} 12. Nb3 {[%clk 0:02:13.2]}
12... Qg5 {[%clk 0:01:24.5]} 13. c5 {[%clk 0:01:40.8]} 13... Bh3 {[%clk
0:00:58]} 14. g3 {[%clk 0:01:40.7]} 14... Bg4 {[%clk 0:00:58.3]} 15. Be2 {[%clk
0:01:40.1]} 15... h5 {[%clk 0:00:41.5]} 16. Bb2 {[%clk 0:01:35.2]} 16... Bh3
{[%clk 0:00:01.7]} 17. a3 {[%clk 0:01:28.9]} 17... Bxf1 {[%clk 0:00:01.7]} 18.
Bxf1 {[%clk 0:01:25.7]} 18... Ba5 {[%clk 0:00:01.8]} 19. Bb5 {[%clk 0:01:21.5]}
19... h4 {[%clk 0:00:01.4]} 20. Qe2 {[%clk 0:00:58]} 20... hxg3 {[%clk
0:00:01.4]} 21. fxg3 {[%clk 0:00:58.9]} 21... O-O-O {[%clk 0:00:00.6]} 22. Bxc6
{[%clk 0:00:58.6]} 22... bxc6 {[%clk 0:00:01.3]} 23. Nxa5 {[%clk 0:00:58.8]}
23... Rh5 {[%clk 0:00:01.8]} 24. Qa6+ {[%clk 0:00:57.7]} 24... Kd7 {[%clk
0:00:01.9]} 25. Qxc6+ {[%clk 0:00:58.4]} 25... Ke7 {[%clk 0:00:02.5]} 26. Qxc7+
{[%clk 0:00:52.7]} 26... Kf8 {[%clk 0:00:03]} 27. Qf4 {[%clk 0:00:49.2]} 27...
Qg6 {[%clk 0:00:03]} 28. Rf1 {[%clk 0:00:44.9]} 28... Re8 {[%clk 0:00:02.5]} 29.
Nc4 {[%clk 0:00:42.7]} 29... f6 {[%clk 0:00:02]} 30. Nd6 {[%clk 0:00:41.5]}
30... Rb8 {[%clk 0:00:01.7]} 31. Bc3 {[%clk 0:00:39.2]} 31... Rb3 {[%clk
0:00:02.3]} 32. Nxe4 {[%clk 0:00:38.5]} 32... Rh3 {[%clk 0:00:01.4]} 33. c6
{[%clk 0:00:33]} 33... Qf7 {[%clk 0:00:01]} 34. Qf5 {[%clk 0:00:27.9]} 34... Rh5
{[%clk 0:00:00.5]} 35. Qc8+ {[%clk 0:00:27.7]} 1-0

[Event "Late-Titled-Tuesday-Blitz-May-14-2024"]
[Site "Chess.com"]
[Date "2024.05.14"]
[Round "9"]
[White "KorolDimitriy75"]
[Black "Oleg_Papayan"]
[Result "0-1"]
[WhiteElo "2409"]
[BlackElo "2612"]
[TimeControl "180+1"]
[EndTime "15:42:54 PDT"]
[Termination "Oleg_Papayan won on time"]

1. d4 {[%clk 0:03:00.9]} 1... d5 {[%clk 0:02:58.4]} 2. c4 {[%clk 0:03:01.1]}
2... e6 {[%clk 0:02:58.7]} 3. Nc3 {[%clk 0:03:01.6]} 3... Nf6 {[%clk 0:02:58.9]}
4. Bg5 {[%clk 0:03:01.8]} 4... dxc4 {[%clk 0:02:52.5]} 5. e4 {[%clk 0:03:01.4]}
5... h6 {[%clk 0:02:49.8]} 6. Bxf6 {[%clk 0:03:01.1]} 6... Qxf6 {[%clk
0:02:49.6]} 7. Nf3 {[%clk 0:02:55.6]} 7... c5 {[%clk 0:02:46.8]} 8. e5 {[%clk
0:02:23.5]} 8... Qg6 {[%clk 0:02:46.8]} 9. d5 {[%clk 0:02:13.5]} 9... a6 {[%clk
0:02:15.5]} 10. a4 {[%clk 0:01:39.6]} 10... Nd7 {[%clk 0:01:47.5]} 11. dxe6
{[%clk 0:01:21.4]} 11... Qxe6 {[%clk 0:01:37.8]} 12. Nd5 {[%clk 0:01:17.9]}
12... Qc6 {[%clk 0:01:27.6]} 13. Bxc4 {[%clk 0:01:08]} 13... Nb6 {[%clk
0:01:26.3]} 14. Nxb6 {[%clk 0:00:46.6]} 14... Qxb6 {[%clk 0:01:25.5]} 15. O-O
{[%clk 0:00:43.4]} 15... Be6 {[%clk 0:01:24.4]} 16. a5 {[%clk 0:00:19.6]} 16...
Qc6 {[%clk 0:01:24.4]} 17. Qb3 {[%clk 0:00:14.9]} 17... Bxc4 {[%clk 0:01:19.5]}
18. Qxc4 {[%clk 0:00:15.8]} 18... Be7 {[%clk 0:01:20]} 19. Rfe1 {[%clk 0:00:13]}
19... O-O {[%clk 0:01:19.7]} 20. e6 {[%clk 0:00:13.1]} 20... Bf6 {[%clk
0:01:07.2]} 21. Re2 {[%clk 0:00:09.3]} 21... fxe6 {[%clk 0:01:01.6]} 22. Rxe6
{[%clk 0:00:08.8]} 22... Qb5 {[%clk 0:01:02]} 23. Qd5 {[%clk 0:00:07.8]} 23...
Kh8 {[%clk 0:00:56.5]} 24. Rae1 {[%clk 0:00:06.7]} 24... Qxa5 {[%clk 0:00:50.9]}
25. h3 {[%clk 0:00:05.2]} 25... Qc7 {[%clk 0:00:44]} 26. Ne5 {[%clk 0:00:03.6]}
26... Bxe5 {[%clk 0:00:42.8]} 27. R1xe5 {[%clk 0:00:04.5]} 27... Rad8 {[%clk
0:00:33.7]} 28. Qxc5 {[%clk 0:00:02.6]} 28... Qxc5 {[%clk 0:00:34.5]} 29. Rxc5
{[%clk 0:00:03]} 29... Rd1+ {[%clk 0:00:34.8]} 30. Kh2 {[%clk 0:00:02.6]} 30...
Rxf2 {[%clk 0:00:35.6]} 31. Rc7 {[%clk 0:00:01.1]} 31... Rdd2 {[%clk 0:00:29.4]}
32. Rg6 {[%clk 0:00:00.7]} 32... Rc2 {[%clk 0:00:24.5]} 0-1

[Event "Late-Titled-Tuesday-Blitz-May-14-2024"]
[Site "Chess.com"]
[Date "2024.05.14"]
[Round "9"]
[White "Kira170"]
[Black "chenxiaoyuer"]
[Result "1-0"]
[WhiteElo "2770"]
[BlackElo "2883"]
[TimeControl "180+1"]
[EndTime "15:42:55 PDT"]
[Termination "Kira170 won by checkmate"]

1. d4 {[%clk 0:03:00.9]} 1... Nf6 {[%clk 0:02:59.7]} 2. Nf3 {[%clk 0:03:00.7]}
2... g6 {[%clk 0:03:00.4]} 3. Bg5 {[%clk 0:03:00.7]} 3... Bg7 {[%clk 0:02:58.6]}
4. Nbd2 {[%clk 0:03:00.7]} 4... d5 {[%clk 0:02:58.4]} 5. e3 {[%clk 0:03:00.4]}
5... O-O {[%clk 0:02:58.5]} 6. Be2 {[%clk 0:03:00.3]} 6... c5 {[%clk 0:02:59.1]}
7. O-O {[%clk 0:02:59.4]} 7... Nc6 {[%clk 0:02:59.8]} 8. c3 {[%clk 0:02:59.3]}
8... Qb6 {[%clk 0:02:53.6]} 9. Qb3 {[%clk 0:02:38.5]} 9... c4 {[%clk 0:02:38]}
10. Qxb6 {[%clk 0:02:38]} 10... axb6 {[%clk 0:02:38.9]} 11. Bxf6 {[%clk
0:02:38.7]} 11... Bxf6 {[%clk 0:02:34.9]} 12. e4 {[%clk 0:02:39.2]} 12... e6
{[%clk 0:02:34.5]} 13. Rfe1 {[%clk 0:02:23]} 13... b5 {[%clk 0:02:28.8]} 14. Nf1
{[%clk 0:02:19.6]} 14... dxe4 {[%clk 0:02:06.4]} 15. N3d2 {[%clk 0:02:18.7]}
15... e5 {[%clk 0:01:58.2]} 16. Nxe4 {[%clk 0:02:08.9]} 16... Bg7 {[%clk
0:01:57.1]} 17. d5 {[%clk 0:02:08.5]} 17... Ne7 {[%clk 0:01:56.4]} 18. d6 {[%clk
0:02:06]} 18... Nf5 {[%clk 0:01:55.9]} 19. a4 {[%clk 0:02:04.2]} 19... bxa4
{[%clk 0:01:35.6]} 20. Bxc4 {[%clk 0:02:03.9]} 20... Rd8 {[%clk 0:01:36.2]} 21.
Rad1 {[%clk 0:01:49]} 21... Bd7 {[%clk 0:01:28.5]} 22. Ne3 {[%clk 0:01:33.7]}
22... Nxe3 {[%clk 0:01:23.2]} 23. Rxe3 {[%clk 0:01:34.6]} 23... Bc6 {[%clk
0:01:23.8]} 24. Ng5 {[%clk 0:01:32.3]} 24... Rd7 {[%clk 0:01:23.8]} 25. f4
{[%clk 0:00:58]} 25... Re8 {[%clk 0:01:10]} 26. fxe5 {[%clk 0:00:53.2]} 26...
Rxe5 {[%clk 0:01:09.3]} 27. Rxe5 {[%clk 0:00:49.9]} 27... Bxe5 {[%clk
0:01:10.2]} 28. Nxf7 {[%clk 0:00:48.4]} 28... Rxf7 {[%clk 0:00:53.8]} 29. d7
{[%clk 0:00:46.1]} 29... Bc7 {[%clk 0:00:51.7]} 30. d8=Q+ {[%clk 0:00:41.2]}
30... Bxd8 {[%clk 0:00:51.7]} 31. Rxd8+ {[%clk 0:00:42]} 31... Kg7 {[%clk
0:00:52.1]} 32. Bxf7 {[%clk 0:00:42.7]} 32... Kxf7 {[%clk 0:00:53]} 33. Kf2
{[%clk 0:00:42.9]} 33... Ke6 {[%clk 0:00:52.2]} 34. g3 {[%clk 0:00:41.8]} 34...
Ke5 {[%clk 0:00:51.9]} 35. Ke3 {[%clk 0:00:41.7]} 35... h5 {[%clk 0:00:52.4]}
36. Rf8 {[%clk 0:00:39.8]} 36... g5 {[%clk 0:00:52.2]} 37. h4 {[%clk 0:00:38.6]}
37... gxh4 {[%clk 0:00:51.6]} 38. gxh4 {[%clk 0:00:39.5]} 38... Bd5 {[%clk
0:00:51.6]} 39. Rh8 {[%clk 0:00:37.2]} 39... Bf7 {[%clk 0:00:51.2]} 40. Rh7
{[%clk 0:00:37.7]} 40... Kf6 {[%clk 0:00:51.5]} 41. Rh8 {[%clk 0:00:35.4]} 41...
b5 {[%clk 0:00:51.3]} 42. Kd4 {[%clk 0:00:34.7]} 42... Kf5 {[%clk 0:00:49.8]}
43. Rf8 {[%clk 0:00:33.3]} 43... Kg6 {[%clk 0:00:47]} 44. Rxf7 {[%clk
0:00:26.5]} 44... Kxf7 {[%clk 0:00:47.9]} 45. Kc5 {[%clk 0:00:26.9]} 45... Kf6
{[%clk 0:00:48.8]} 46. Kxb5 {[%clk 0:00:27.1]} 46... Kf5 {[%clk 0:00:49.7]} 47.
c4 {[%clk 0:00:27.5]} 47... Kg4 {[%clk 0:00:50.6]} 48. c5 {[%clk 0:00:27.9]}
48... a3 {[%clk 0:00:49.9]} 49. bxa3 {[%clk 0:00:27.7]} 49... Kxh4 {[%clk
0:00:50.2]} 50. c6 {[%clk 0:00:28.1]} 50... Kg3 {[%clk 0:00:50.7]} 51. c7 {[%clk
0:00:28.4]} 51... h4 {[%clk 0:00:51.6]} 52. c8=Q {[%clk 0:00:28.8]} 52... h3
{[%clk 0:00:52.5]} 53. Qxh3+ {[%clk 0:00:27.9]} 53... Kxh3 {[%clk 0:00:53.1]}
54. a4 {[%clk 0:00:28.5]} 54... Kg4 {[%clk 0:00:53.8]} 55. a5 {[%clk 0:00:29.4]}
55... Kf4 {[%clk 0:00:54.7]} 56. a6 {[%clk 0:00:30.2]} 56... Kg5 {[%clk
0:00:55.6]} 57. a7 {[%clk 0:00:30.9]} 57... Kf6 {[%clk 0:00:56.5]} 58. a8=Q
{[%clk 0:00:31.7]} 58... Ke5 {[%clk 0:00:57.4]} 59. Qd8 {[%clk 0:00:31.2]} 59...
Kf4 {[%clk 0:00:58.3]} 60. Qe7 {[%clk 0:00:31.2]} 60... Kf3 {[%clk 0:00:58.3]}
61. Qe5 {[%clk 0:00:31.2]} 61... Kg2 {[%clk 0:00:59.2]} 62. Qf4 {[%clk
0:00:31.3]} 62... Kh1 {[%clk 0:01:00.1]} 63. Qg5 {[%clk 0:00:31.6]} 63... Kh2
{[%clk 0:01:01]} 64. Kc4 {[%clk 0:00:31.9]} 64... Kh1 {[%clk 0:01:01.8]} 65. Kd3
{[%clk 0:00:32.6]} 65... Kh2 {[%clk 0:01:02.2]} 66. Ke3 {[%clk 0:00:33.2]} 66...
Kh1 {[%clk 0:01:03.1]} 67. Kf2 {[%clk 0:00:33.5]} 67... Kh2 {[%clk 0:01:04]} 68.
Qh5# {[%clk 0:00:34.1]} 1-0

[Event "Late-Titled-Tuesday-Blitz-May-14-2024"]
[Site "Chess.com"]
[Date "2024.05.14"]
[Round "9"]
[White "Dexter_Dyke"]
[Black "Atanejhad"]
[Result "1-0"]
[WhiteElo "2596"]
[BlackElo "2478"]
[TimeControl "180+1"]
[EndTime "15:42:55 PDT"]
[Termination "Dexter_Dyke won by checkmate"]

1. e4 {[%clk 0:02:11]} 1... e5 {[%clk 0:02:57.9]} 2. f4 {[%clk 0:02:11.1]} 2...
d5 {[%clk 0:02:57.3]} 3. exd5 {[%clk 0:02:11.1]} 3... exf4 {[%clk 0:02:57.1]} 4.
Nf3 {[%clk 0:02:11.2]} 4... Bd6 {[%clk 0:02:57]} 5. c4 {[%clk 0:02:11.8]} 5...
Nf6 {[%clk 0:02:50.7]} 6. d4 {[%clk 0:02:11.8]} 6... c5 {[%clk 0:02:50.7]} 7.
dxc6 {[%clk 0:02:10]} 7... Nxc6 {[%clk 0:02:50]} 8. Nc3 {[%clk 0:02:09.2]} 8...
O-O {[%clk 0:02:48.6]} 9. Be2 {[%clk 0:02:09.7]} 9... Re8 {[%clk 0:02:43.4]} 10.
O-O {[%clk 0:02:09.7]} 10... Bg4 {[%clk 0:02:43.7]} 11. d5 {[%clk 0:02:07.1]}
11... Ne7 {[%clk 0:02:35]} 12. Kh1 {[%clk 0:02:05.5]} 12... Ng6 {[%clk
0:02:34.3]} 13. Nd4 {[%clk 0:01:47.1]} 13... Bxe2 {[%clk 0:02:31.9]} 14. Ncxe2
{[%clk 0:01:43.4]} 14... Ne4 {[%clk 0:02:21.4]} 15. Nf5 {[%clk 0:01:26.6]} 15...
Be5 {[%clk 0:02:09.8]} 16. Nxf4 {[%clk 0:01:24.4]} 16... Qb6 {[%clk 0:01:22.1]}
17. Be3 {[%clk 0:01:11.7]} 17... Qxb2 {[%clk 0:01:16.8]} 18. Rb1 {[%clk
0:01:11.8]} 18... Qxa2 {[%clk 0:01:16.8]} 19. Rxb7 {[%clk 0:01:10.8]} 19... Qxc4
{[%clk 0:01:15.4]} 20. Nd3 {[%clk 0:00:54.5]} 20... Bf6 {[%clk 0:01:06.9]} 21.
d6 {[%clk 0:00:50.6]} 21... a5 {[%clk 0:01:01.3]} 22. Rc7 {[%clk 0:00:44.9]}
22... Qe6 {[%clk 0:00:58.4]} 23. d7 {[%clk 0:00:35.3]} 23... Red8 {[%clk
0:00:57.3]} 24. Qa4 {[%clk 0:00:32.5]} 24... Nc3 {[%clk 0:00:39.7]} 25. Qc6
{[%clk 0:00:26.2]} 25... a4 {[%clk 0:00:32.7]} 26. Rc1 {[%clk 0:00:20]} 26...
Nd5 {[%clk 0:00:27.9]} 27. Qxe6 {[%clk 0:00:17.6]} 27... fxe6 {[%clk 0:00:28.8]}
28. Rc8 {[%clk 0:00:16.6]} 28... Kf7 {[%clk 0:00:17.4]} 29. Rxa8 {[%clk
0:00:15.4]} 29... Rxa8 {[%clk 0:00:18.3]} 30. Rc8 {[%clk 0:00:15.9]} 30... Ra7
{[%clk 0:00:17.1]} 31. Nd6+ {[%clk 0:00:14.7]} 31... Ke7 {[%clk 0:00:13.7]} 32.
d8=Q# {[%clk 0:00:14.8]} 1-0

[Event "Late-Titled-Tuesday-Blitz-May-14-2024"]
[Site "Chess.com"]
[Date "2024.05.14"]
[Round "9"]
[White "KNVB"]
[Black "WindWhistler11"]
[Result "1-0"]
[WhiteElo "2798"]
[BlackElo "2531"]
[TimeControl "180+1"]
[EndTime "15:43:03 PDT"]
[Termination "KNVB won on time"]

1. d4 {[%clk 0:03:00.9]} 1... Nf6 {[%clk 0:02:56.1]} 2. c4 {[%clk 0:03:00.9]}
2... c5 {[%clk 0:02:55.7]} 3. d5 {[%clk 0:03:01.4]} 3... e6 {[%clk 0:02:56.1]}
4. Nc3 {[%clk 0:03:01.5]} 4... exd5 {[%clk 0:02:56.6]} 5. cxd5 {[%clk
0:03:02.4]} 5... Bd6 {[%clk 0:02:56.3]} 6. e4 {[%clk 0:03:02.6]} 6... O-O {[%clk
0:02:56.2]} 7. Bd3 {[%clk 0:03:03.3]} 7... Bc7 {[%clk 0:02:51.4]} 8. Nf3 {[%clk
0:03:03.3]} 8... d6 {[%clk 0:02:52.1]} 9. h3 {[%clk 0:03:03.7]} 9... a6 {[%clk
0:02:52.8]} 10. a4 {[%clk 0:03:04]} 10... Nbd7 {[%clk 0:02:53.2]} 11. O-O {[%clk
0:03:04.4]} 11... Rb8 {[%clk 0:02:53.1]} 12. Re1 {[%clk 0:03:04.1]} 12... Re8
{[%clk 0:02:53.6]} 13. Bf4 {[%clk 0:03:04.4]} 13... Nf8 {[%clk 0:02:47.9]} 14.
Nd2 {[%clk 0:02:51.6]} 14... Ng6 {[%clk 0:02:30.3]} 15. Bg3 {[%clk 0:02:51.8]}
15... Ne5 {[%clk 0:02:18.7]} 16. Bf1 {[%clk 0:02:51.9]} 16... Bd7 {[%clk
0:02:07]} 17. Nf3 {[%clk 0:01:09.2]} 17... Ng6 {[%clk 0:01:18.5]} 18. e5 {[%clk
0:00:28.2]} 18... dxe5 {[%clk 0:00:49.9]} 19. d6 {[%clk 0:00:29.1]} 19... Ba5
{[%clk 0:00:47.7]} 20. Nxe5 {[%clk 0:00:29.7]} 20... b5 {[%clk 0:00:15]} 21.
axb5 {[%clk 0:00:26.2]} 21... Bxc3 {[%clk 0:00:14.2]} 22. bxc3 {[%clk
0:00:25.2]} 22... axb5 {[%clk 0:00:12.7]} 23. Ra7 {[%clk 0:00:11.3]} 23... Nxe5
{[%clk 0:00:09.3]} 24. Rxe5 {[%clk 0:00:06.4]} 24... Re6 {[%clk 0:00:08.1]} 25.
Rxc5 {[%clk 0:00:03.5]} 25... Ne4 {[%clk 0:00:06.7]} 26. Rcc7 {[%clk 0:00:03.2]}
26... Nxg3 {[%clk 0:00:01.8]} 27. Rxd7 {[%clk 0:00:03.2]} 27... Qg5 {[%clk
0:00:00.3]} 28. fxg3 {[%clk 0:00:02.4]} 1-0